bitfinex-derivatives/quotes_ETHF0:USTF0_20260123
["timestamp","ask_amount","ask_price","bid_price","bid_amount"]
[1769196064387,0.00943711,2969.8,2968.8,0.1686]
[1769196064691,0.00238935,2969.9,2968.8,0.1686]
[1769196064891,0.98666694,2969.8,2968.8,0.1686]
[1769196065092,0.00238935,2969.9,2968.8,0.1686]
[1769196065300,0.98667081,2969.8,2968.8,0.1686]
[1769196065498,0.00238935,2969.9,2968.8,0.1686]
[1769196065795,0.00238935,2969.9,2968.9,0.1686]
[1769196066089,0.00238935,2969.9,2968.5,1.874]
[1769196066090,2.33406657,2970.9,2969.2,0.16858]
[1769196066282,1.92825974,2970.7,2969.2,0.16858]
[1769196066482,3.34586111,2970.6,2969.2,0.16858]
[1769196066681,1.41760137,2970.5,2969.2,0.16858]
[1769196066886,0.99671415,2970.4,2969.4,0.16857]
[1769196067090,0.00289242,2970.4,2969.6,0.00505187]
[1769196067786,2.03133639,2971.2,2970.0,0.16854]
[1769196067992,1.42744866,2971.1,2970.0,0.16854]
[1769196068187,0.00943711,2970.9,2970.0,0.16854]
[1769196068391,0.00943711,2971.0,2970.0,0.16854]
[1769196068587,0.00943711,2971.0,2970.1,0.16853]
[1769196068886,4.36540296,2971.7,2969.8,1.96687391]
[1769196068887,2.03133639,2971.7,2969.8,1.96687391]
[1769196069089,1.41848089,2971.6,2970.5,0.16851]
[1769196069284,0.98841693,2971.5,2969.8,1.96687391]
[1769196069490,0.98841693,2971.4,2970.0,1.96687391]
[1769196069687,2.03133639,2972.2,2970.8,0.16849]
[1769196069996,1.41922215,2972.1,2970.8,0.16849]
[1769196070184,0.00943711,2971.9,2970.8,0.16849]
[1769196070386,2.0407735,2971.9,2970.1,0.16853]
[1769196070690,0.00943711,2971.3,2970.5,0.16851]
[1769196070895,2.03133639,2971.7,2970.5,0.16851]
[1769196071096,0.00943711,2971.5,2970.5,0.16851]
[1769196071583,0.00943711,2971.4,2970.5,0.16851]
[1769196071789,2.03133639,2971.7,2970.1,5.244]
[1769196071986,2.03133639,2971.2,2969.5,3.371]
[1769196072190,2.03133639,2971.0,2969.5,3.53956]
[1769196072387,2.03133639,2970.5,2969.4,0.00435195]
[1769196072689,2.03133639,2970.3,2968.8,3.5396]
[1769196072989,0.98722528,2970.2,2968.8,3.371]
[1769196073196,2.03133639,2970.8,2969.0,0.16859]
[1769196073394,0.42935445,2970.7,2969.2,0.16858]
[1769196073594,2.46069084,2970.6,2969.2,0.16858]
[1769196073796,2.03133639,2970.4,2969.2,0.172365]
[1769196074194,0.00943711,2970.1,2969.2,0.172365]
[1769196074395,0.01262984,2970.1,2969.2,0.172365]
[1769196074894,0.00319273,2970.1,2969.2,0.172365]
[1769196075294,0.01262984,2970.1,2969.2,0.172365]
[1769196076297,2.03133639,2971.0,2969.4,0.16857]
[1769196076498,0.42858899,2970.9,2969.7,0.16855]
[1769196076691,2.03133639,2971.6,2969.2,1.97065891]
[1769196076897,0.42869416,2971.5,2969.9,0.16854]
[1769196077097,0.42869416,2971.4,2970.0,1.873]
[1769196077292,0.00333529,2971.4,2970.0,1.873]
[1769196077493,2.33406657,2972.1,2970.5,0.16851]
[1769196077799,2.46000412,2972.0,2970.5,0.16851]
[1769196077997,2.46000412,2971.9,2970.5,0.16851]
[1769196078299,2.45991844,2971.8,2970.1,1.873]
[1769196078597,2.03133639,2971.6,2970.1,1.873]
[1769196078797,2.03133639,2971.6,2970.0,4.00841391]
[1769196078992,2.45978536,2971.5,2970.0,4.00841391]
[1769196079300,2.03133639,2971.5,2970.0,2.04154]
[1769196079501,2.03133639,2971.3,2969.4,0.16857]
[1769196079700,2.03133639,2971.3,2969.7,0.16855]
[1769196079903,2.03133639,2971.3,2969.9,0.16854]
[1769196080402,2.03133639,2971.3,2969.9,2.04154]
[1769196082394,2.33406657,2971.7,2970.1,0.16853]
[1769196082594,0.42765321,2971.6,2970.1,0.16853]
[1769196082797,0.42765321,2971.5,2969.9,1.873]
[1769196083000,2.03376434,2971.8,2969.9,1.873]
[1769196083001,2.03376434,2971.8,2970.4,0.16851]
[1769196083201,0.42767899,2971.7,2970.4,0.16851]
[1769196083403,0.42767899,2971.6,2970.4,0.16851]
[1769196083601,2.03376434,2971.8,2970.4,0.16851]
[1769196083897,0.42771657,2971.7,2970.4,0.16851]
[1769196084103,2.03376434,2971.8,2970.4,0.16851]
[1769196084299,2.45905437,2971.7,2969.6,1.96687391]
[1769196084501,2.03133639,2971.5,2969.9,0.16854]
[1769196084801,2.03133639,2971.3,2969.5,3.37]
[1769196084999,0.00505187,2971.0,2969.9,0.16854]
[1769196085302,0.98016961,2970.9,2969.9,0.16854]
[1769196085504,0.00505187,2971.0,2969.9,0.16854]
[1769196085704,0.9805506,2970.9,2969.9,0.16854]
[1769196085906,0.00505187,2971.0,2969.9,0.16854]
[1769196086105,0.98064973,2970.9,2969.9,0.16854]
[1769196086307,0.98070244,2970.8,2969.9,0.16854]
[1769196086503,0.00505187,2971.0,2969.9,0.16854]
[1769196086713,0.98081712,2970.9,2969.9,0.16854]
[1769196087004,0.98081712,2970.8,2969.5,0.16856]
[1769196087200,0.98081712,2970.8,2969.7,1.872]
[1769196087400,0.00505187,2971.0,2969.7,1.872]
[1769196087601,0.00505187,2971.0,2969.7,2.04056]
[1769196087801,0.00505187,2971.0,2970.0,0.16854]
[1769196088308,0.9809775,2970.9,2970.0,0.16854]
[1769196088807,0.00505187,2971.0,2970.0,0.16854]
[1769196088997,0.00505187,2971.0,2970.1,0.16853]
[1769196089811,0.00505187,2971.0,2970.2,0.16853]
[1769196090709,2.03133639,2971.7,2970.4,0.16852]
[1769196090898,1.41081369,2971.6,2970.4,0.16852]
[1769196091100,1.41081369,2971.5,2970.4,0.16852]
[1769196091306,0.42801244,2971.4,2970.4,0.16852]
[1769196091509,0.42801244,2971.3,2970.4,0.16852]
[1769196091706,2.03133639,2971.7,2970.4,0.16852]
[1769196091906,1.41201143,2971.6,2970.4,0.16852]
[1769196092107,1.41201143,2971.5,2970.4,0.16852]
[1769196092309,1.41282465,2971.4,2970.4,0.16852]
[1769196092507,0.00242795,2971.8,2970.5,0.16851]
[1769196092704,1.4132326,2971.7,2970.5,0.16851]
[1769196093008,1.4132326,2971.6,2970.6,1.872]
[1769196093201,0.98452772,2971.5,2970.5,0.16851]
[1769196093404,0.42886461,2971.4,2970.5,2.04051]
[1769196093609,0.42886461,2971.3,2970.5,2.04051]
[1769196093803,2.04905074,2971.8,2970.5,2.04051]
[1769196094007,3.46017361,2971.7,2970.5,2.04051]
[1769196094203,1.41355082,2971.6,2970.5,2.04051]
[1769196094403,0.42881621,2971.5,2970.5,2.04051]
[1769196094604,0.42881621,2971.4,2970.6,0.1685]
[1769196094809,0.42881621,2971.3,2970.7,0.1685]
[1769196095113,0.00242795,2971.8,2970.7,0.1685]
[1769196095410,1.41429228,2971.7,2970.7,0.1685]
[1769196095609,1.41429228,2971.6,2970.7,0.1685]
[1769196095909,0.42913575,2971.5,2970.7,0.1685]
[1769196096107,0.42913575,2971.4,2970.7,0.1685]
[1769196096410,2.04905074,2971.8,2970.7,0.1685]
[1769196096709,2.04662279,2971.6,2970.3,0.00505187]
[1769196096908,2.04662279,2971.4,2970.3,0.00505187]
[1769196097106,1.41436279,2971.3,2970.3,0.00505187]
[1769196097306,1.41436279,2971.2,2970.3,0.00505187]
[1769196097508,0.42844507,2971.1,2970.3,0.00505187]
[1769196097807,0.42844507,2971.0,2970.3,0.00505187]
[1769196098007,0.42844507,2970.9,2970.3,0.00505187]
[1769196098313,2.04662279,2971.4,2970.4,0.16852]
[1769196098615,0.42847832,2971.3,2970.6,0.1685]
[1769196098909,0.00242795,2971.8,2970.7,0.1685]
[1769196098910,0.42847832,2971.2,2970.7,0.1685]
[1769196099106,0.00242795,2971.8,2970.8,0.16849]
[1769196099308,0.42839618,2971.7,2970.9,0.16849]
[1769196099509,0.42839618,2971.6,2970.9,0.16849]
[1769196099707,0.00242795,2971.8,2970.9,0.16849]
[1769196099910,3.03232489,2971.7,2970.3,0.17357187]
[1769196100110,2.04662279,2971.7,2970.3,0.17357187]
[1769196100507,0.98585919,2971.6,2970.3,0.17357187]
[1769196100708,3.03243714,2971.5,2970.3,0.00505187]
[1769196100917,2.04662279,2971.3,2970.3,0.00505187]
[1769196102511,2.04662279,2971.1,2970.3,0.00505187]
[1769196105218,0.99058469,2971.0,2969.4,0.16857]
[1769196105412,2.04662279,2970.8,2969.4,2.04057]
[1769196105608,2.04662279,2970.8,2969.5,0.16857]
[1769196105811,2.04662279,2970.8,2969.6,0.16856]
[1769196106421,0.00505187,2971.0,2970.0,0.16854]
[1769196106714,0.00505187,2971.0,2969.6,1.42664765]
[1769196107513,0.00505187,2971.0,2970.2,0.16853]
[1769196110623,0.00505187,2971.0,2970.3,0.16852]
[1769196111416,0.00242795,2971.8,2970.3,1.872]
[1769196111718,0.00242795,2971.8,2970.7,0.1685]
[1769196111914,0.00242795,2971.8,2970.8,0.16849]
[1769196116625,0.00242795,2971.8,2970.4,0.00505187]
[1769196116626,2.04905074,2971.8,2970.4,0.00505187]
[1769196117126,0.00242795,2971.8,2970.7,0.1685]
[1769196117320,0.00242795,2971.8,2970.8,0.16849]
[1769196117522,0.00242795,2971.8,2970.4,0.00505187]
[1769196117830,0.00242795,2971.8,2971.0,0.16848]
[1769196118324,0.00242795,2971.8,2970.4,0.00505187]
[1769196118722,2.04905074,2971.8,2970.6,0.1685]
[1769196119324,2.04905074,2971.8,2970.8,0.16849]
[1769196119325,0.00242795,2971.8,2970.8,0.16849]
[1769196119518,0.00242795,2971.8,2971.1,0.16847]
[1769196120123,0.00242795,2971.8,2970.4,0.00505187]
[1769196120324,0.00242795,2971.8,2970.5,5.241]
[1769196120822,2.04905074,2971.8,2970.7,0.1685]
[1769196121430,0.00242795,2971.8,2970.8,0.16849]
[1769196121628,0.00242795,2971.8,2970.9,0.16848]
[1769196122128,0.00242795,2971.8,2971.0,0.16848]
[1769196124226,0.00242795,2971.8,2970.9,1.872]
[1769196124934,1.96230114,2971.8,2970.6,0.1685]
[1769196125431,1.96230114,2971.8,2970.4,0.00505187]
[1769196125927,1.95987319,2971.6,2970.4,0.00505187]
[1769196126836,0.00242795,2971.8,2970.4,0.00505187]
[1769196126837,0.00242795,2971.8,2970.7,0.1685]
[1769196127029,0.00242795,2971.8,2970.9,0.16848]
[1769196127328,0.00242795,2971.8,2971.0,0.16848]
[1769196127533,0.00242795,2971.8,2971.1,0.16848]
[1769196128231,2.95125815,2973.6,2971.0,1.872]
[1769196128232,2.01178358,2973.0,2971.2,2.05511474]
[1769196128529,2.01178358,2973.0,2971.7,0.16844]
[1769196128728,2.01178358,2973.0,2971.8,0.16844]
[1769196129136,2.95125815,2974.2,2972.1,2.06016661]
[1769196129332,0.26660934,2975.7,2974.4,0.16829]
[1769196129531,2.15900209,2976.0,2973.7,1.872]
[1769196129731,2.15900209,2976.0,2973.9,1.42664765]
[1769196129936,2.15900209,2976.0,2973.7,2.04033]
[1769196130133,2.14861064,2975.9,2974.4,1.80949367]
[1769196130338,2.14861064,2975.9,2974.7,0.00504159]
[1769196131136,2.14861064,2975.9,2974.0,1.80949367]
[1769196131433,2.14861064,2975.9,2973.7,3.85248375]
[1769196132229,2.14861064,2975.9,2973.7,2.04299008]
[1769196133941,2.14861064,2975.9,2973.7,1.87466008]
[1769196134136,2.14861064,2975.9,2974.5,0.16828]
[1769196134343,2.14861064,2975.9,2974.4,1.42664765]
[1769196134840,2.14861064,2975.9,2974.4,4.79464765]
[1769196135037,2.14861064,2975.9,2974.4,1.19323435]
[1769196135243,2.14861064,2975.9,2974.1,3.367]
[1769196135442,0.00286999,2976.0,2973.5,1.19323435]
[1769196135443,2.01178358,2975.7,2973.5,1.19323435]
[1769196135743,2.01178358,2975.7,2973.4,1.42664765]
[1769196135946,2.01178358,2975.7,2973.4,2.619882]
[1769196136146,0.00504159,2975.0,2973.4,1.42664765]
[1769196136539,2.01682517,2975.0,2973.4,1.42664765]
[1769196137340,2.01682517,2975.0,2973.2,1.19323435]
[1769196137341,2.01682517,2975.0,2973.6,0.16833]
[1769196137538,0.00504159,2975.0,2973.8,0.16832]
[1769196137743,0.00504159,2975.0,2973.9,0.16832]
[1769196139241,0.00504159,2975.0,2974.0,0.16831]
[1769196139440,2.01178358,2975.5,2973.9,1.42664765]
[1769196139641,2.01178358,2975.5,2974.4,0.16829]
[1769196140138,2.01465357,2976.0,2974.2,0.00504159]
[1769196140338,2.01465357,2976.0,2974.9,0.16826]
[1769196143351,2.01465357,2976.0,2975.0,0.4992572]
[1769196143644,2.01465357,2976.0,2975.1,0.4992572]
[1769196143849,2.01465357,2976.0,2975.2,0.4992572]
[1769196144045,2.01465357,2976.0,2975.3,0.4992572]
[1769196144248,2.01465357,2976.0,2974.3,0.16829]
[1769196144445,2.01465357,2976.0,2974.4,0.49905361]
[1769196144644,2.01465357,2976.0,2974.5,0.49905361]
[1769196144845,2.01465357,2976.0,2974.6,0.49905361]
[1769196145146,2.01465357,2976.0,2974.7,0.49905361]
[1769196145347,2.01465357,2976.0,2974.3,0.16829]
[1769196145348,2.01465357,2976.0,2974.8,0.49905361]
[1769196145652,2.01465357,2976.0,2974.3,0.16829]
[1769196145950,2.01465357,2976.0,2974.4,0.49688766]
[1769196146150,2.01465357,2976.0,2974.5,0.49688766]
[1769196146455,2.01178358,2975.8,2974.2,0.00504159]
[1769196146648,2.01178358,2975.7,2974.2,0.00504159]
[1769196148551,2.01178358,2975.5,2973.7,0.00266008]
[1769196148750,2.01178358,2975.1,2973.7,0.00266008]
[1769196149948,2.01178358,2975.1,2973.9,0.16832]
[1769196151144,2.01178358,2975.1,2973.7,0.00266008]
[1769196151750,2.01178358,2974.9,2973.7,0.00266008]
[1769196152556,2.01178358,2974.9,2973.0,0.16837]
[1769196153257,2.01178358,2974.9,2973.0,1.36160435]
[1769196153559,2.18004358,2974.9,2973.0,0.17255132]
[1769196154451,2.34819158,2974.7,2973.0,0.17255132]
[1769196154849,2.297,2975.0,2972.4,3.5334]
[1769196154850,2.51648158,2974.4,2972.4,3.5334]
[1769196155346,2.34819158,2974.2,2972.4,3.5334]
[1769196155747,2.34819158,2974.2,2972.6,0.16839]
[1769196155948,2.34819158,2974.2,2972.6,0.17227407]
[1769196157355,2.34819158,2974.2,2972.6,1.36550842]
[1769196157852,2.34819158,2974.0,2972.6,1.36550842]
[1769196158052,2.34819158,2974.0,2972.6,0.17227407]
[1769196158456,2.34819158,2974.0,2972.7,0.45001498]
[1769196158753,2.34819158,2973.9,2972.8,0.45001498]
[1769196158957,0.00504159,2973.6,2972.9,1.81161933]
[1769196159255,4.66019158,2974.5,2973.2,1.19323435]
[1769196159445,4.66019158,2974.5,2973.3,1.64324933]
[1769196159652,2.34819158,2974.5,2973.4,0.44529177]
[1769196159951,4.66219158,2974.5,2973.5,0.44529177]
[1769196160150,2.35169668,2974.5,2973.6,0.44529177]
[1769196160350,2.35169668,2974.5,2973.7,0.44529177]
[1769196160554,2.35169668,2974.5,2973.8,0.44529177]
[1769196160856,2.35169668,2974.5,2973.9,0.44529177]
[1769196161060,2.35169668,2974.5,2974.0,0.44529177]
[1769196161261,2.35169668,2974.5,2973.4,1.19323435]
[1769196161857,2.35169668,2974.5,2973.2,1.80949367]
[1769196162055,2.35169668,2974.5,2973.1,1.81453526]
[1769196162362,2.323,2974.4,2973.1,1.81453526]
[1769196162561,2.35169668,2974.5,2973.1,1.81453526]
[1769196162751,4.67469668,2974.5,2973.1,1.81453526]
[1769196162949,2.35169668,2974.5,2973.1,1.81453526]
[1769196163257,0.0035051,2974.5,2973.5,1.80949367]
[1769196164961,3.366,2975.4,2973.8,1.80949367]
[1769196165164,2.34819158,2975.5,2973.8,1.80949367]
[1769196165461,2.34819158,2975.5,2974.0,1.80949367]
[1769196166061,0.00280089,2975.5,2974.3,1.80949367]
[1769196166260,0.00280089,2975.5,2974.3,1.97778367]
[1769196166958,0.00280089,2975.5,2974.6,0.00504159]
[1769196167362,2.34819158,2976.0,2974.6,0.00504159]
[1769196167968,2.34819158,2975.5,2973.8,1.80949367]
[1769196168367,2.51915974,2975.5,2973.7,1.80949367]
[1769196168668,2.34819158,2975.3,2973.6,5.17549367]
[1769196168966,2.34819158,2975.3,2973.8,1.97781367]
[1769196170168,2.34819158,2975.3,2973.8,0.16832]
[1769196170358,2.34819158,2975.3,2973.4,1.80949367]
[1769196170561,2.34819158,2974.8,2973.2,1.80949367]
[1769196171065,0.16827,2974.9,2972.6,1.81337774]
[1769196171066,2.34819158,2974.2,2972.6,1.81337774]
[1769196171261,2.34819158,2973.5,2972.1,1.80949367]
[1769196171467,2.34819158,2973.5,2972.0,1.80949367]
[1769196171663,2.34819158,2973.5,2971.7,2.41265823]
[1769196171664,2.34819158,2973.5,2971.8,1.80949367]
[1769196172257,2.34819158,2973.5,2971.8,1.81215518]
[1769196172570,2.34819158,2973.5,2971.8,0.17110151]
[1769196172765,4.67819158,2973.5,2971.8,1.98059518]
[1769196172965,2.34819158,2973.5,2971.8,1.98059518]
[1769196173167,2.34819158,2973.5,2971.8,0.17110151]
[1769196173460,2.34819158,2973.9,2972.1,0.16842]
[1769196175169,2.34819158,2973.7,2972.1,0.16842]
[1769196177573,2.34819158,2973.6,2972.2,0.16841]
[1769196177774,2.34819158,2973.6,2972.2,1.97790367]
[1769196177975,2.34819158,2973.6,2972.3,1.80949367]
[1769196178174,2.34819158,2973.6,2972.2,0.16841]
[1769196178674,2.34819158,2973.6,2972.2,1.97790367]
[1769196179566,2.34819158,2973.6,2972.3,1.80949367]
[1769196180376,2.34819158,2973.6,2972.2,1.80949367]
[1769196180571,2.34819158,2973.4,2971.8,1.81215518]
[1769196180876,2.34819158,2973.2,2971.8,1.81215518]
[1769196181071,2.34819158,2973.2,2971.8,0.00266151]
[1769196181372,0.00504159,2972.9,2971.8,0.00266151]
[1769196181873,0.00504159,2972.9,2971.8,1.81215518]
[1769196182068,0.00504159,2972.9,2972.0,1.80949367]
[1769196182275,0.00395337,2973.4,2972.2,0.16841]
[1769196182679,0.00395337,2973.4,2972.2,1.97790367]
[1769196183174,2.64581522,2974.2,2972.4,1.97789367]
[1769196183678,2.64581522,2974.2,2972.5,1.80949367]
[1769196184171,2.81789773,2974.2,2972.4,1.97789367]
[1769196184384,2.81789773,2974.2,2972.4,0.1684]
[1769196185471,2.64581522,2974.0,2972.3,1.80949367]
[1769196185672,2.64581522,2974.0,2972.1,0.00504159]
[1769196185673,2.81412522,2974.0,2972.2,1.80949367]
[1769196185874,2.81412522,2974.0,2972.1,1.81453526]
[1769196186073,2.81412522,2974.0,2972.1,1.98295526]
[1769196186273,2.81412522,2974.0,2972.2,1.80949367]
[1769196186568,2.64581522,2973.8,2972.1,1.98295526]
[1769196186772,2.64581522,2973.5,2972.1,0.00504159]
[1769196186972,2.74749851,2973.3,2972.1,0.00504159]
[1769196187271,0.16834,2973.6,2972.1,0.00504159]
[1769196187479,2.74749851,2973.8,2972.1,0.17346159]
[1769196187679,2.74749851,2973.8,2972.1,1.81453526]
[1769196187875,2.74749851,2973.8,2972.2,1.80949367]
[1769196188176,6.423,2974.1,2972.6,0.16839]
[1769196188482,2.74749851,2974.0,2972.3,1.80949367]
[1769196188683,2.74749851,2973.9,2972.1,0.00504159]
[1769196188875,2.74749851,2973.7,2972.1,0.00504159]
[1769196190384,2.74749851,2973.7,2972.1,0.17346159]
[1769196190683,2.74749851,2973.7,2972.2,0.16841]
[1769196191178,2.435,2974.0,2972.2,1.80949367]
[1769196191381,2.75128102,2974.2,2972.4,1.80949367]
[1769196191674,0.00378251,2974.2,2972.9,1.80949367]
[1769196192475,0.00378251,2974.2,2972.9,3.68049367]
[1769196192870,0.00378251,2974.2,2972.9,3.84886367]
[1769196193681,0.00378251,2974.2,2973.1,0.16836]
[1769196194472,6.423,2975.2,2973.4,0.16834]
[1769196194680,2.74749851,2975.2,2973.4,1.97783367]
[1769196194974,2.442,2975.3,2973.4,1.80949367]
[1769196194975,0.16826,2975.0,2973.4,1.80949367]
[1769196195278,2.74749851,2974.9,2973.1,1.80949367]
[1769196195481,2.75114091,2974.9,2974.0,0.00504159]
[1769196195683,2.75114091,2974.9,2974.0,0.00936598]
[1769196196484,2.75114091,2974.9,2973.2,1.80949367]
[1769196196785,0.0036424,2974.9,2973.4,1.80949367]
[1769196196984,0.0036424,2974.9,2973.6,1.97782367]
[1769196197177,0.0036424,2974.9,2973.7,1.80949367]
[1769196197679,2.75114091,2974.9,2973.7,0.00408008]
[1769196202382,2.74749851,2974.4,2973.0,1.80949367]
[1769196202583,2.74749851,2974.4,2972.4,0.1684]
[1769196202584,2.91579851,2974.2,2972.4,0.1684]
[1769196202777,2.74749851,2974.0,2972.0,1.80949367]
[1769196202987,2.74749851,2973.8,2971.8,1.80949367]
[1769196203581,2.74749851,2973.8,2971.8,1.9805708]
[1769196203784,43.54749851,2973.8,2971.8,1.8121308]
[1769196203981,43.54749851,2973.8,2971.9,4.36524305]
[1769196204481,43.54749851,2973.8,2972.0,2.55574938]
[1769196204687,2.74749851,2974.3,2972.5,0.1684]
[1769196205077,2.74749851,2974.3,2972.5,1.87]
[1769196205886,2.74749851,2974.3,2972.4,4.36524305]
[1769196206283,2.74749851,2974.3,2972.4,2.55574938]
[1769196206690,2.74749851,2974.3,2972.3,1.97790367]
[1769196206891,2.506,2974.7,2972.3,0.16841]
[1769196206892,2.74749851,2974.1,2972.3,0.16841]
[1769196207587,2.74749851,2974.1,2971.9,1.80949367]
[1769196207788,0.16833,2973.8,2971.9,1.80949367]
[1769196207981,2.91582851,2973.7,2971.9,1.80949367]
[1769196208185,2.91582851,2973.7,2971.8,1.8121308]
[1769196208585,2.74749851,2973.5,2972.1,1.80949367]
[1769196209479,2.74749851,2973.5,2972.0,1.80949367]
[1769196209986,2.74749851,2973.5,2972.1,1.80949367]
[1769196211093,2.74749851,2973.5,2972.2,1.80949367]
[1769196211887,2.91580851,2974.0,2972.3,1.80949367]
[1769196212083,2.74749851,2974.0,2972.5,1.80949367]
[1769196212291,2.74749851,2974.0,2972.3,0.16841]
[1769196212292,2.74749851,2974.0,2972.4,1.80949367]
[1769196212486,2.74749851,2974.0,2972.5,1.80949367]
[1769196212693,2.74749851,2974.0,2972.5,1.97789367]
[1769196212887,2.74749851,2974.0,2972.6,1.80949367]
[1769196213401,2.74749851,2974.0,2972.7,1.80949367]
[1769196214893,2.74749851,2974.0,2972.6,1.80949367]
[1769196215092,2.74749851,2974.0,2972.5,1.80949367]
[1769196216191,2.74749851,2974.0,2972.4,1.80949367]
[1769196216397,2.74888615,2973.7,2972.3,1.80949367]
[1769196216799,2.74888615,2973.5,2972.3,1.80949367]
[1769196218895,2.74888615,2973.5,2972.2,1.80949367]
[1769196219100,2.74888615,2973.5,2972.1,1.80949367]
[1769196221495,1.4248702,2974.0,2972.1,1.80949367]
[1769196221703,2.74888615,2973.1,2971.8,1.8121308]
[1769196221902,2.74888615,2973.1,2971.8,0.00263713]
[1769196224296,40.8,2973.4,2971.8,0.17107713]
[1769196224508,40.8,2973.4,2971.9,0.16843]
[1769196224701,2.74888615,2973.6,2972.0,1.97791367]
[1769196226202,2.74888615,2973.6,2972.1,1.80949367]
[1769196226403,2.74888615,2973.6,2972.3,0.16841]
[1769196227404,2.74888615,2973.6,2972.3,1.97790367]
[1769196228805,2.553,2973.7,2972.4,1.80949367]
[1769196229102,2.553,2973.7,2972.6,1.80949367]
[1769196229300,6.423,2973.9,2972.7,1.80949367]
[1769196230202,6.423,2973.9,2972.8,1.80949367]
[1769196231204,6.423,2973.9,2972.9,1.80949367]
[1769196232710,5.32688615,2974.1,2972.9,1.80949367]
[1769196233408,2.578,2974.1,2972.9,1.80949367]
[1769196233613,2.74888615,2973.8,2972.7,1.81391937]
[1769196233805,2.74888615,2973.8,2972.2,2.41265823]
[1769196235402,2.74888615,2973.8,2972.1,2.41265823]
[1769196236111,2.74888615,2973.3,2971.8,5.43111814]
[1769196236310,2.74888615,2973.1,2971.8,0.00263713]
[1769196237012,2.91724615,2973.1,2971.8,0.00263713]
[1769196239711,43.54888615,2973.0,2971.8,0.00263713]
[1769196240416,2.74888615,2972.9,2971.8,0.00263713]
[1769196240618,2.74888615,2972.6,2971.2,2.41265823]
[1769196240819,2.91727615,2972.6,2970.9,2.41265823]
[1769196241113,5.56927615,2972.6,2970.9,5.45311799]
[1769196241417,0.00504159,2972.0,2971.0,2.41265823]
[1769196241625,0.00806102,2972.0,2971.0,2.58527587]
[1769196241818,0.00806102,2972.0,2971.0,0.17261764]
[1769196242914,0.00806102,2972.0,2971.0,0.00413764]
[1769196243116,3.13966516,2972.0,2971.0,0.00413764]
[1769196243517,0.00806102,2972.0,2971.0,0.00413764]
[1769196247131,0.00806102,2972.0,2971.1,0.16847]
[1769196249525,0.00806102,2972.0,2971.1,2.03947]
[1769196250730,0.00806102,2972.0,2971.0,0.00413764]
[1769196251233,2.99353022,2972.0,2971.0,0.00413764]
[1769196251830,2.99353022,2972.0,2969.9,4.28465823]
[1769196251831,2.9854692,2971.6,2969.9,4.28465823]
[1769196252035,2.9854692,2971.6,2969.9,1.872]
[1769196252331,3.1539192,2971.6,2969.9,0.16854]
[1769196252526,3.1539192,2971.6,2969.9,2.04054]
[1769196252728,2.9854692,2971.6,2970.0,0.16854]
[1769196252929,2.9854692,2971.6,2970.1,0.16853]
[1769196257833,2.9854692,2971.6,2970.2,0.16853]
[1769196259334,2.9854692,2971.6,2969.9,0.0039888]
[1769196260226,2.9854692,2971.1,2969.9,0.0039888]
[1769196260533,2.755,2971.1,2969.9,0.0039888]
[1769196264334,5.7724692,2971.5,2969.9,3.22411468]
[1769196264841,43.7854692,2971.4,2969.9,0.1725288]
[1769196265038,2.787,2971.5,2970.0,3.22012588]
[1769196265240,2.787,2971.5,2970.1,1.80735103]
[1769196265644,5.7724692,2971.5,2970.0,5.02747691]
[1769196266940,5.7724692,2971.5,2970.1,1.80735103]
[1769196267634,2.787,2971.5,2970.2,0.16853]
[1769196267831,2.99353022,2972.0,2970.4,3.22009588]
[1769196268036,0.00806102,2972.0,2970.5,4.92358588]
[1769196268236,0.00806102,2972.0,2970.6,0.1685]
[1769196268436,0.00806102,2972.0,2970.6,5.02743691]
[1769196268637,0.00806102,2972.0,2970.7,1.97585103]
[1769196269733,0.00806102,2972.0,2970.7,5.02743691]
[1769196269947,0.00806102,2972.0,2970.8,5.02742691]
[1769196270135,0.16837,2973.0,2971.2,1.80735103]
[1769196270341,3.45038179,2973.0,2971.3,1.872]
[1769196270742,3.45038179,2973.0,2971.3,3.67935103]
[1769196270941,3.1538392,2973.0,2971.4,1.80735103]
[1769196271136,2.817,2973.1,2971.7,0.16844]
[1769196271337,0.00301195,2973.0,2971.7,3.22002588]
[1769196271940,3.30369727,2973.0,2971.6,1.80735103]
[1769196272147,3.30068532,2972.8,2971.4,1.80735103]
[1769196272443,3.30068532,2972.8,2971.3,1.80735103]
[1769196272742,3.30068532,2972.8,2971.2,1.80735103]
[1769196273043,3.30068532,2972.5,2971.1,0.00504159]
[1769196273943,4.56859878,2972.9,2971.1,4.96811961]
[1769196275141,4.56859878,2972.9,2971.2,1.80735103]
[1769196276143,0.00301195,2973.0,2971.3,3.15572699]
[1769196276843,0.00301195,2973.0,2971.6,3.32417699]
[1769196277045,3.30369727,2973.0,2971.5,1.80735103]
[1769196277244,3.30369727,2973.0,2971.4,1.80735103]
[1769196277442,3.30369727,2973.0,2971.3,1.872]
[1769196277641,3.30068532,2972.6,2971.1,1.98087262]
[1769196277845,3.30068532,2972.6,2971.1,0.17352159]
[1769196278548,0.00301195,2973.0,2971.1,3.32924858]
[1769196278848,3.30369727,2973.0,2971.2,3.32419699]
[1769196281046,1.26791346,2972.7,2971.1,1.81239262]
[1769196281251,3.30068532,2972.6,2971.2,1.872]
[1769196282047,3.30068532,2972.6,2971.1,0.00504159]
[1769196282255,3.46907532,2972.6,2971.1,0.00504159]
[1769196285251,6.423,2972.9,2971.1,0.00504159]
[1769196285252,3.30068532,2972.4,2971.1,0.00504159]
[1769196285557,3.30068532,2972.0,2970.3,3.15572699]
[1769196285760,3.30068532,2972.0,2970.4,1.872]
[1769196286058,3.30068532,2972.0,2970.3,5.02772699]
[1769196287159,3.46911532,2972.0,2970.1,1.97588103]
[1769196288159,3.46911532,2972.0,2970.3,0.16852]
[1769196288463,0.00504159,2972.1,2970.5,3.32423699]
[1769196288652,3.30572691,2972.1,2970.5,3.32423699]
[1769196288852,3.30572691,2972.1,2970.5,0.16851]
[1769196289158,3.47414691,2972.1,2970.3,1.80735103]
[1769196289556,3.47414691,2972.1,2970.2,1.80735103]
[1769196290154,3.47414691,2972.1,2970.3,1.80735103]
[1769196291658,3.46912532,2971.8,2970.1,1.97588103]
[1769196292253,3.46912532,2971.8,2970.2,0.16853]
[1769196292459,3.46912532,2971.8,2970.3,1.80735103]
[1769196293260,0.00504159,2972.1,2970.5,3.32423699]
[1769196293659,0.00504159,2972.1,2970.6,1.80735103]
[1769196294064,0.00504159,2972.1,2970.6,3.67935103]
[1769196294868,3.30572691,2972.1,2970.6,3.67935103]
[1769196298670,3.30572691,2972.1,2970.7,1.80735103]
[1769196300275,3.30068532,2971.9,2970.7,1.80735103]